fUST/lending_fUST_20250816
["ID","MTS","AMOUNT","RATE_DAILY","PERIOD"]
[379467710,1755294642102,-151.0,0.00027126,7]
[379467711,1755294642112,-154.65201671,0.00027168,2]
[379467712,1755294642121,-350.0,0.00027168,2]
[379467713,1755294642130,-360.0,0.00027207,2]
[379467714,1755294642139,-1246.06507833,0.00027268,2]
[379467715,1755294642150,-1500.0,0.00027268,2]
[379467716,1755294642159,-1500.0,0.00027268,2]
[379467717,1755294642171,-500.0,0.00027273,2]
[379467718,1755294642181,-5550.34001896,0.00027382,7]
[379467719,1755294642191,-153.43776749,0.00027397,2]
[379467720,1755294642200,-160.124625,0.00027397,2]
[379467721,1755294642211,-500.0,0.00027397,5]
[379467722,1755294642220,-500.0,0.00027398,2]
[379467723,1755294642231,-151.0,0.00027398,2]
[379467724,1755294642243,-151.0,0.00027398,2]
[379467725,1755294642254,-151.0,0.00027398,2]
[379467726,1755294642265,-151.0,0.00027398,2]
[379467727,1755294642275,-205.69227694,0.00027398,2]
[379467728,1755294642286,-1330.12871513,0.00027459,8]
[379467729,1755294642297,-2158.7020361,0.00027472,2]
[379467730,1755294642307,-1000.0,0.00027473,2]
[379467731,1755294642318,-5750.12469403,0.00027482,2]
[379467732,1755294642328,-576.89690831,0.00027482,2]
[379467733,1755294642339,-2000.0,0.000275,2]
[379467735,1755294642348,-232.111669,0.000275,10]
[379467737,1755294642357,-356.4416263,0.00027502,2]
[379467739,1755294642367,-1424.34073869,0.00027502,2]
[379467741,1755294642378,-418.90256455,0.00027502,2]
[379467742,1755294642388,-200.0,0.0002751,19]
[379467743,1755294642400,-151.64101356,0.00027546,2]
[379467744,1755294642411,-430.30698584,0.00027573,5]
[379467745,1755294642422,-500.0,0.00027573,5]
[379467746,1755294642432,-500.0,0.00027573,5]
[379467747,1755294642441,-150.0,0.00027573,5]
[379467748,1755294642451,-419.530307,0.00027573,7]
[379467749,1755294642460,-419.530307,0.00027573,7]
[379467750,1755294642470,-419.530307,0.00027573,7]
[379467751,1755294642479,-419.530307,0.00027573,7]
[379467752,1755294642489,-419.530307,0.00027573,7]
[379467753,1755294642498,-419.530307,0.00027573,7]
[379467754,1755294642507,-419.530307,0.00027573,7]
[379467755,1755294642516,-419.530307,0.00027573,7]
[379467756,1755294642526,-419.530307,0.00027573,7]
[379467757,1755294642536,-419.530307,0.00027573,7]
[379467758,1755294642546,-419.530307,0.00027573,7]
[379467759,1755294642555,-419.530307,0.00027573,7]
[379467760,1755294642564,-419.530307,0.00027573,7]
[379467761,1755294642573,-419.530307,0.00027573,7]
[379467762,1755294642583,-151.0,0.00027573,7]
[379467763,1755294642593,-151.0,0.00027573,7]
[379467764,1755294642603,-151.0,0.00027573,7]
[379467765,1755294642612,-151.0,0.00027573,7]
[379467766,1755294642622,-151.0,0.00027573,7]
[379467767,1755294642631,-151.0,0.00027573,7]
[379467768,1755294642640,-151.0,0.00027573,7]
[379467769,1755294642649,-151.0,0.00027573,7]
[379467770,1755294642658,-151.0,0.00027573,7]
[379467771,1755294642667,-151.0,0.00027573,7]
[379467772,1755294642676,-151.0,0.00027573,7]
[379467773,1755294642685,-151.0,0.00027573,7]
[379467774,1755294642694,-221.175588,0.00027573,7]
[379467775,1755294642702,-151.0,0.00027573,7]
[379467776,1755294642711,-151.0,0.00027573,7]
[379467777,1755294642720,-151.0,0.00027573,7]
[379467778,1755294642729,-151.0,0.00027573,7]
[379467779,1755294642737,-151.0,0.00027573,7]
[379467780,1755294642746,-151.0,0.00027573,7]
[379467781,1755294642755,-151.0,0.00027573,7]
[379467782,1755294642851,-151.0,0.00027573,7]
[379467783,1755294642860,-151.0,0.00027573,7]
[379467784,1755294642868,-151.0,0.00027573,7]
[379467785,1755294642877,-151.0,0.00027573,7]
[379467786,1755294642886,-151.0,0.00027573,7]
[379467787,1755294642895,-249.769492,0.00027573,7]
[379467788,1755294642903,-151.461735,0.00027573,7]
[379467789,1755294642912,-1000.0,0.00027573,2]
[379467790,1755294642921,-1000.0,0.00027573,2]
[379467791,1755294642930,-1000.0,0.00027573,2]
[379467792,1755294642939,-1000.0,0.00027573,2]
[379467793,1755294642947,-1000.0,0.00027573,2]
[379467794,1755294642956,-1000.0,0.00027573,2]
[379467795,1755294642965,-1000.0,0.00027573,2]
[379467796,1755294642974,-1000.0,0.00027573,2]
[379467797,1755294642983,-1000.0,0.00027573,2]
[379467798,1755294642991,-1000.0,0.00027573,2]
[379467799,1755294643000,-1000.0,0.00027573,2]
[379467800,1755294643009,-1000.0,0.00027573,2]
[379467801,1755294643018,-1000.0,0.00027573,2]
[379467802,1755294643027,-1000.0,0.00027573,2]
[379467803,1755294643035,-1000.0,0.00027573,2]
[379467804,1755294643044,-1000.0,0.00027573,2]
[379467805,1755294643053,-1000.0,0.00027573,2]
[379467806,1755294643062,-1000.0,0.00027573,2]
[379467807,1755294643071,-1000.0,0.00027573,2]
[379467808,1755294643080,-1000.0,0.00027573,2]
[379467809,1755294643090,-1000.0,0.00027573,2]
[379467810,1755294643099,-1000.0,0.00027573,2]
[379467811,1755294643109,-1000.0,0.00027573,2]
[379467812,1755294643117,-1000.0,0.00027573,2]
[379467813,1755294643126,-1148.068525,0.00027573,2]
[379467814,1755294643135,-151.0,0.00027573,7]
[379467815,1755294643144,-151.0,0.00027573,7]
[379467816,1755294643153,-151.812763,0.00027573,7]
[379467817,1755294643162,-151.0,0.00027573,7]
[379467818,1755294643173,-151.0,0.00027573,7]
[379467819,1755294643182,-151.0,0.00027573,7]
[379467820,1755294643191,-151.0,0.00027574,7]
[379467821,1755294643200,-200.51664821,0.00027577,10]
[379467822,1755294643209,-151.0,0.00027578,7]
[379467823,1755294643218,-151.0,0.00027578,7]
[379467824,1755294643227,-151.0,0.00027578,7]
[379467825,1755294643239,-151.0,0.00027578,7]
[379467826,1755294643247,-151.0,0.00027578,7]
[379467827,1755294643256,-260.038966,0.00027578,7]
[379467828,1755294643265,-151.0,0.00027578,7]
[379467829,1755294643274,-151.0,0.00027578,7]
[379467830,1755294643283,-151.0,0.00027578,7]
[379467831,1755294643292,-256.406403,0.00027578,7]
[379467832,1755294643301,-196.733415,0.00027578,7]
[379467833,1755294643310,-196.733415,0.00027578,7]
[379467834,1755294643319,-196.733415,0.00027578,7]
[379467835,1755294643327,-196.733415,0.00027578,7]
[379467836,1755294643337,-196.733415,0.00027578,7]
[379467837,1755294643346,-196.733415,0.00027578,7]
[379467838,1755294643355,-196.733415,0.00027578,7]
[379467839,1755294643364,-196.733415,0.00027578,7]
[379467840,1755294643373,-196.733415,0.00027578,7]
[379467841,1755294643381,-196.733415,0.00027578,7]
[379467842,1755294643390,-196.733415,0.00027578,7]
[379467843,1755294643399,-196.733415,0.00027578,7]
[379467844,1755294643408,-196.733415,0.00027578,7]
[379467845,1755294643417,-196.733415,0.00027578,7]
[379467846,1755294643426,-196.733415,0.00027578,7]
[379467847,1755294643435,-196.733415,0.00027578,7]
[379467848,1755294643444,-151.0,0.00027578,7]
[379467849,1755294643453,-151.525067,0.00027578,7]
[379467850,1755294643462,-1049.66,0.00027578,2]
[379467851,1755294643471,-151.0,0.00027578,7]
[379467852,1755294643480,-151.0,0.00027578,7]
[379467853,1755294643488,-151.0,0.00027578,7]
[379467854,1755294643497,-185.454807,0.0002758,7]
[379467855,1755294643506,-185.454807,0.0002758,7]
[379467856,1755294643515,-185.454807,0.0002758,7]
[379467857,1755294643523,-185.454807,0.0002758,7]
[379467858,1755294643532,-185.454807,0.0002758,7]
[379467859,1755294643541,-185.454807,0.0002758,7]
[379467860,1755294643550,-185.454807,0.0002758,7]
[379467861,1755294643559,-185.454807,0.0002758,7]
[379467862,1755294643567,-185.454807,0.0002758,7]
[379467863,1755294643576,-185.454807,0.0002758,7]
[379467864,1755294643585,-185.454807,0.0002758,7]
[379467865,1755294643594,-185.454807,0.0002758,7]
[379467866,1755294643602,-185.454807,0.0002758,7]
[379467867,1755294643611,-185.454807,0.0002758,7]
[379467868,1755294643621,-185.454807,0.0002758,7]
[379467869,1755294643630,-185.454807,0.0002758,7]
[379467870,1755294643639,-283.296442,0.0002758,7]
[379467871,1755294643647,-283.296442,0.0002758,7]
[379467872,1755294643656,-283.296442,0.0002758,7]
[379467873,1755294643665,-283.296442,0.0002758,7]
[379467874,1755294643674,-283.296442,0.0002758,7]
[379467875,1755294643683,-283.296442,0.0002758,7]
[379467876,1755294643692,-283.296442,0.0002758,7]
[379467877,1755294643701,-283.296442,0.0002758,7]
[379467878,1755294643709,-283.296442,0.0002758,7]
[379467879,1755294643718,-283.296442,0.0002758,7]
[379467880,1755294643727,-283.296442,0.0002758,7]
[379467881,1755294643736,-283.296442,0.0002758,7]
[379467882,1755294643744,-283.296442,0.0002758,7]
[379467883,1755294643753,-283.296442,0.0002758,7]
[379467884,1755294643762,-283.296442,0.0002758,7]
[379467885,1755294643771,-283.296442,0.0002758,7]
[379467886,1755294643779,-216.77912109,0.0002758,7]
[379467887,1755294643788,-232.08354597,0.0002758,7]
[379467888,1755294643797,-160.0,0.00027581,10]
[379467889,1755294643806,-5492.7412286,0.00027582,2]
[379467890,1755294643814,-957791.80018132,0.00027582,20]
[379467902,1755294644307,-151.0,0.00027578,7]
[379467904,1755294644318,-299.89900101,0.00027582,20]
[379467906,1755294644331,-9522.6,0.00027582,20]
[379468020,1755294742407,164.64,0.00013699,2]
[379468021,1755294742429,121.54639902,0.00013699,2]
[379468028,1755294896917,4300.0,0.00028767,120]
[379468035,1755294998577,171.769698,0.00013699,2]
[379468053,1755295633087,-245.15617952,0.00019006,2]
[379468054,1755295634215,-287.48940167,0.00019006,2]
[379468056,1755295647089,-232.96619401,0.00019006,2]
[379468078,1755295832083,-471.80884634,0.00019006,2]
[379468082,1755295832142,-886.294864,0.00019006,2]
[379468084,1755295832154,-296.36995803,0.00019006,2]
[379468086,1755295832164,-163.80239239,0.00019098,2]
[379468088,1755295832173,-2227.2535732,0.000199,2]
[379468090,1755295832182,-163.80239239,0.00020032,2]
[379468092,1755295832191,-126.88850851,0.00020352,2]
[379468151,1755295838176,-2581.14273819,0.00020352,2]
[379468152,1755295838186,-1200.0,0.00020414,2]
[379468153,1755295838195,-300.0,0.00020415,2]
[379468154,1755295838205,-300.0,0.00020415,2]
[379468155,1755295838214,-2227.25357306,0.00020416,2]
[379468156,1755295838223,-310.3639604,0.00020451,2]
[379468157,1755295838232,-200.0,0.000207,20]
[379468158,1755295838242,-200.0,0.000207,20]
[379468159,1755295838251,-200.0,0.000207,20]
[379468160,1755295838260,-200.0,0.000207,20]
[379468161,1755295838270,-200.0,0.000207,20]
[379468162,1755295838279,-200.0,0.000207,20]
[379468163,1755295838289,-200.0,0.000207,20]
[379468164,1755295838298,-200.0,0.000207,20]
[379468165,1755295838308,-467.81616033,0.00020738,2]
[379468166,1755295838317,-2227.25357306,0.00020932,2]
[379468167,1755295838326,-163.80239239,0.00020966,2]
[379468168,1755295838335,-2227.25357306,0.00021448,2]
[379468169,1755295838345,-252.39,0.00021532,2]
[379468170,1755295838354,-163.80239239,0.000219,2]
[379468171,1755295838363,-2227.25357306,0.00021965,2]
[379468172,1755295838372,-167.0,0.00022,2]
[379468174,1755295838381,-295.49992114,0.00022423,2]
[379468175,1755295838390,-2227.25357306,0.00022481,2]
[379468176,1755295838399,-3000.0,0.000225,2]
[379468177,1755295838408,-3000.0,0.0002251,2]
[379468178,1755295838418,-2818.69999643,0.0002252,2]
[379468179,1755295838483,-181.30000357,0.0002252,2]
[379468180,1755295838494,-3000.0,0.0002253,2]
[379468181,1755295838508,-3000.0,0.0002254,2]
[379468182,1755295838517,-3000.0,0.0002255,2]
[379468183,1755295838526,-3000.0,0.0002256,2]
[379468184,1755295838536,-3000.0,0.0002257,2]
[379468185,1755295838547,-3000.0,0.0002258,2]
[379468186,1755295838557,-185.74318984,0.00022589,2]
[379468187,1755295838567,-3000.0,0.0002259,2]
[379468188,1755295838577,-3000.0,0.000226,2]
[379468189,1755295838587,-3000.0,0.0002261,2]
[379468190,1755295838596,-164.386,0.00022614,2]
[379468191,1755295838607,-3000.0,0.0002262,2]
[379468192,1755295838617,-3000.0,0.0002263,2]
[379468193,1755295838627,-3000.0,0.0002264,2]
[379468194,1755295838636,-3000.0,0.0002265,2]
[379468195,1755295838645,-3000.0,0.0002266,2]
[379468196,1755295838655,-3000.0,0.0002267,2]
[379468197,1755295838665,-3000.0,0.0002268,2]
[379468198,1755295838675,-3000.0,0.0002269,2]
[379468199,1755295838684,-3000.0,0.000227,2]
[379468200,1755295838695,-3000.0,0.0002271,2]
[379468201,1755295838704,-3000.0,0.0002272,2]
[379468202,1755295838714,-200.0,0.00022725,20]
[379468203,1755295838723,-200.0,0.00022725,20]
[379468204,1755295838733,-200.0,0.00022725,20]
[379468205,1755295838743,-200.0,0.00022725,20]
[379468206,1755295838753,-200.0,0.00022725,20]
[379468207,1755295838763,-200.0,0.00022725,20]
[379468208,1755295838772,-200.0,0.00022725,20]
[379468209,1755295838782,-200.0,0.00022725,20]
[379468210,1755295838792,-200.0,0.00022725,20]
[379468211,1755295838801,-200.0,0.00022725,20]
[379468212,1755295838811,-240.0,0.00022725,20]
[379468213,1755295838820,-3000.0,0.0002273,2]
[379468214,1755295838830,-4019.2,0.0002273,10]
[379468215,1755295838839,-3000.0,0.0002274,2]
[379468216,1755295838849,-3000.0,0.0002275,2]
[379468217,1755295838858,-3000.0,0.0002276,2]
[379468218,1755295838867,-3580.253675,0.0002277,2]
[379468219,1755295838879,-176.27,0.000228,7]
[379468220,1755295838889,-2227.25357306,0.00022997,2]
[379468221,1755295838898,-153.0,0.00023,2]
[379468222,1755295838907,-167.0,0.00023014,7]
[379468223,1755295838917,-295.49992114,0.00023145,2]
[379468224,1755295838926,-2227.25357306,0.00023513,2]
[379468225,1755295838936,-504.79,0.00023518,2]
[379468226,1755295838945,-295.49992114,0.00023867,2]
[379468227,1755295838955,-417.15472785,0.00024,10]
[379468228,1755295838965,-2227.25357306,0.00024029,2]
[379468229,1755295838975,-700.0,0.00024328,2]
[379468230,1755295838984,-2227.25357306,0.00024545,2]
[379468231,1755295838993,-295.49992114,0.00024589,2]
[379468232,1755295839003,-151.0,0.00024658,2]
[379468233,1755295839012,-151.0,0.00024658,2]
[379468234,1755295839021,-151.0,0.00024658,2]
[379468235,1755295839032,-151.0,0.00024658,2]
[379468236,1755295839041,-151.0,0.00024658,2]
[379468237,1755295839051,-151.0,0.00024658,2]
[379468238,1755295839060,-201.22167384,0.00024658,2]
[379468239,1755295839070,-151.0,0.00024658,2]
[379468240,1755295839079,-151.94102238,0.00024658,2]
[379468241,1755295839089,-151.24638763,0.00024658,2]
[379468242,1755295839100,-152.11740545,0.00024658,2]
[379468243,1755295839109,-156.77208899,0.00024658,2]
[379468244,1755295839119,-151.0,0.00024658,2]
[379468245,1755295839128,-151.0,0.00024658,2]
[379468246,1755295839138,-151.0,0.00024658,2]
[379468247,1755295839147,-151.0,0.00024658,2]
[379468248,1755295839156,-151.0,0.00024658,2]
[379468249,1755295839166,-151.0,0.00024658,2]
[379468250,1755295839176,-151.85152653,0.00024658,2]
[379468251,1755295839187,-500.0,0.00024658,2]
[379468252,1755295839196,-151.0,0.00024658,2]
[379468253,1755295839206,-151.0,0.00024658,2]
[379468254,1755295839216,-151.0,0.00024658,2]
[379468255,1755295839322,-151.0,0.00024658,2]
[379468256,1755295839331,-151.0,0.00024658,2]
[379468257,1755295839341,-151.0,0.00024658,2]
[379468258,1755295839350,-151.0,0.00024658,2]
[379468259,1755295839359,-151.0,0.00024658,2]
[379468260,1755295839370,-151.0,0.00024658,2]
[379468261,1755295839379,-611.79266441,0.00024698,2]
[379468262,1755295839388,-1869.39337666,0.00024732,2]
[379468263,1755295839397,-598.71087147,0.00024766,2]
[379468264,1755295839407,-1983.84717118,0.000248,2]
[379468265,1755295839416,-332.30114129,0.00024831,2]
[379468266,1755295839426,-517.60453349,0.00024831,2]
[379468267,1755295839435,-517.60453349,0.00024831,2]
[379468268,1755295839444,-517.60453349,0.00024831,2]
[379468269,1755295839454,-517.60453349,0.00024831,2]
[379468270,1755295839463,-517.60453349,0.00024831,2]
[379468271,1755295839473,-517.60453349,0.00024831,2]
[379468272,1755295839482,-517.60453349,0.00024831,2]
[379468273,1755295839492,-517.60453349,0.00024831,2]
[379468274,1755295839501,-517.60453349,0.00024831,2]
[379468275,1755295839513,-517.60453349,0.00024831,2]
[379468276,1755295839523,-517.60453349,0.00024831,2]
[379468277,1755295839533,-517.60453349,0.00024831,2]
[379468278,1755295839542,-517.60453349,0.00024831,2]
[379468279,1755295839553,-517.60453349,0.00024831,2]
[379468280,1755295839562,-3833.4164627,0.00024832,2]
[379468281,1755295839571,-155.18,0.00024842,7]
[379468282,1755295839582,-500.0,0.00024873,2]
[379468283,1755295839591,-500.0,0.00024873,2]
[379468284,1755295839601,-500.0,0.00024873,2]
[379468285,1755295839610,-232.08354597,0.00024875,2]
[379468286,1755295839621,-843.47195277,0.00024875,2]
[379468287,1755295839630,-216.77912109,0.00024875,2]
[379468288,1755295839641,-160.0,0.00024879,2]
[379468289,1755295839650,-368.26,0.0002489,3]
[379468290,1755295839660,-11046.48,0.000249,7]
[379468291,1755295839670,-3246.93,0.000249,7]
[379468292,1755295839679,-216.77912109,0.000249,7]
[379468293,1755295839688,-474851.717272,0.000249,2]
[379468294,1755295839698,-160.0,0.000249,7]
[379468295,1755295839708,-232.08354597,0.000249,7]
[379468296,1755295839717,-160.0,0.000249,2]
[379468297,1755295839727,-151.0,0.00024932,2]
[379468298,1755295839736,-151.0,0.00024932,2]
[379468299,1755295839746,-151.0,0.00024932,2]
[379468300,1755295839755,-197.999999,0.00024932,2]
[379468301,1755295839764,-151.0,0.00024932,2]
[379468302,1755295839774,-204.51895134,0.00024932,2]
[379468303,1755295839783,-500.0,0.00024932,2]
[379468304,1755295839792,-200.0,0.00024948,20]
[379468305,1755295839802,-200.0,0.00024948,20]
[379468306,1755295839811,-200.0,0.00024948,20]
[379468307,1755295839821,-200.0,0.00024948,20]
[379468308,1755295839831,-200.0,0.00024948,20]
[379468309,1755295839840,-200.0,0.00024948,20]
[379468310,1755295839850,-200.0,0.00024948,20]
[379468311,1755295839859,-200.0,0.00024948,20]
[379468312,1755295839869,-200.0,0.00024948,20]
[379468313,1755295839878,-200.0,0.00024948,20]
[379468314,1755295839888,-200.0,0.00024948,20]
[379468315,1755295839898,-200.0,0.00024948,20]
[379468316,1755295839909,-200.0,0.00024948,20]
[379468317,1755295839919,-200.0,0.00024948,20]
[379468318,1755295839928,-334.0,0.00024948,20]
[379468319,1755295839938,-611.7926644,0.0002498,2]
[379468320,1755295839948,-2227.25357306,0.00025061,2]
[379468321,1755295839957,-151.0,0.00025177,6]
[379468322,1755295839966,-235.55944359,0.00025206,2]
[379468323,1755295839976,-151.0,0.00025206,2]
[379468324,1755295839986,-151.0,0.00025206,2]
[379468325,1755295839995,-151.0,0.00025206,2]
[379468326,1755295840005,-500.0,0.00025206,2]
[379468327,1755295840015,-611.7926644,0.00025263,2]
[379468328,1755295840024,-295.49992114,0.00025312,2]
[379468329,1755295840035,-700.0,0.00025424,2]
[379468330,1755295840045,-972.0,0.00025443,2]
[379468331,1755295840054,-636.0,0.00025443,2]
[379468332,1755295840064,-2152.0,0.00025443,2]
[379468333,1755295840073,-408.0,0.00025443,2]
[379468334,1755295840082,-260.0,0.00025448,2]
[379468335,1755295840092,-151.0,0.0002548,2]
[379468336,1755295840102,-151.0,0.0002548,2]
[379468337,1755295840112,-151.0,0.0002548,2]
[379468338,1755295840122,-500.0,0.0002548,2]
[379468339,1755295840131,-757.18,0.00025484,2]
[379468340,1755295840141,-611.7926644,0.00025545,2]
[379468341,1755295840151,-2227.25357306,0.00025577,3]
[379468342,1755295840162,-151.0,0.00025665,6]
[379468343,1755295840172,-151.0,0.00025754,2]
[379468344,1755295840182,-165.840578,0.00025754,2]
[379468345,1755295840191,-500.0,0.00025754,2]
[379468346,1755295840201,-611.7926644,0.00025827,2]
[379468348,1755295840210,-237425.858636,0.00025926,2]
[379468349,1755295840221,-991.92358559,0.00025926,2]
[379468350,1755295840230,-153.0,0.00025947,2]
[379468351,1755295840240,-153.0,0.00025947,2]
[379468352,1755295840250,-153.0,0.00025947,2]
[379468353,1755295840260,-153.0,0.00025947,2]
[379468354,1755295840270,-153.0,0.00025947,2]
[379468355,1755295840280,-153.0,0.00025947,2]
[379468356,1755295840290,-153.0,0.00025947,2]
[379468357,1755295840299,-153.0,0.00025947,2]
[379468358,1755295840309,-153.0,0.00025947,2]
[379468359,1755295840318,-153.0,0.00025947,2]
[379468360,1755295840327,-153.0,0.00025947,2]
[379468361,1755295840337,-153.0,0.00025947,2]
[379468362,1755295840347,-153.0,0.00025947,2]
[379468363,1755295840356,-153.0,0.00025947,2]
[379468364,1755295840366,-153.0,0.00025947,2]
[379468365,1755295840375,-153.0,0.00025947,2]
[379468366,1755295840386,-153.0,0.00025947,2]
[379468368,1755295840397,-153.0,0.00025947,2]
[379468369,1755295840407,-153.0,0.00025947,2]
[379468370,1755295840416,-153.0,0.00025947,2]
[379468371,1755295840426,-153.0,0.00025947,2]
[379468372,1755295840435,-153.0,0.00025947,2]
[379468373,1755295840445,-153.0,0.00025947,2]
[379468374,1755295840454,-153.0,0.00025947,2]
[379468375,1755295840463,-153.0,0.00025947,2]
[379468376,1755295840473,-153.0,0.00025947,2]
[379468377,1755295840483,-153.0,0.00025947,2]
[379468378,1755295840492,-153.0,0.00025947,2]
[379468379,1755295840502,-153.0,0.00025947,2]
[379468380,1755295840515,-153.0,0.00025947,2]
[379468381,1755295840525,-153.0,0.00025947,2]
[379468382,1755295840534,-153.0,0.00025947,2]
[379468384,1755295840544,-153.0,0.00025947,2]
[379468385,1755295840554,-153.0,0.00025947,2]
[379468386,1755295840564,-153.0,0.00025947,2]
[379468388,1755295840573,-153.0,0.00025947,2]
[379468389,1755295840584,-153.0,0.00025947,2]
[379468391,1755295840593,-153.0,0.00025947,2]
[379468393,1755295840602,-153.0,0.00025947,2]
[379468395,1755295840612,-153.0,0.00025947,2]
[379468397,1755295840621,-153.0,0.00025947,2]
[379468399,1755295840631,-153.0,0.00025947,2]
[379468401,1755295840640,-153.0,0.00025947,2]
[379468403,1755295840649,-153.0,0.00025947,2]
[379468405,1755295840658,-153.0,0.00025947,2]
[379468407,1755295840667,-153.0,0.00025947,2]
[379468409,1755295840676,-153.0,0.00025947,2]
[379468419,1755295840765,-153.0,0.00025947,2]
[379468421,1755295840774,-153.0,0.00025947,2]
[379468423,1755295840783,-153.0,0.00025947,2]
[379468425,1755295840794,-153.0,0.00025947,2]
[379468427,1755295840803,-153.0,0.00025947,2]
[379468429,1755295840812,-153.0,0.00025947,2]
[379468431,1755295840822,-153.0,0.00025947,2]
[379468433,1755295840831,-153.0,0.00025947,2]
[379468435,1755295840840,-153.0,0.00025947,2]
[379468437,1755295840850,-153.0,0.00025947,2]
[379468439,1755295840859,-153.0,0.00025947,2]
[379468441,1755295840868,-153.0,0.00025947,2]
[379468442,1755295840877,-153.0,0.00025947,2]
[379468443,1755295840887,-153.0,0.00025947,2]
[379468444,1755295840896,-153.0,0.00025947,2]
[379468445,1755295840905,-153.0,0.00025947,2]
[379468446,1755295840917,-153.0,0.00025947,2]
[379468447,1755295840926,-153.0,0.00025947,2]
[379468448,1755295840935,-153.0,0.00025947,2]
[379468449,1755295840945,-153.0,0.00025947,2]
[379468450,1755295840954,-153.0,0.00025947,2]
[379468451,1755295840964,-153.0,0.00025947,2]
[379468452,1755295840973,-153.0,0.00025947,2]
[379468453,1755295840982,-153.0,0.00025947,2]
[379468454,1755295840992,-153.0,0.00025947,2]
[379468455,1755295841002,-153.0,0.00025947,2]
[379468456,1755295841011,-153.0,0.00025947,2]
[379468457,1755295841021,-153.0,0.00025947,2]
[379468458,1755295841030,-153.0,0.00025947,2]
[379468459,1755295841040,-153.0,0.00025947,2]
[379468460,1755295841050,-153.0,0.00025947,2]
[379468461,1755295841059,-153.0,0.00025947,2]
[379468462,1755295841069,-153.0,0.00025947,2]
[379468463,1755295841078,-153.0,0.00025947,2]
[379468464,1755295841088,-153.0,0.00025947,2]
[379468465,1755295841097,-153.0,0.00025947,2]
[379468466,1755295841106,-153.0,0.00025947,2]
[379468467,1755295841116,-153.0,0.00025947,2]
[379468468,1755295841125,-153.0,0.00025947,2]
[379468469,1755295841135,-153.0,0.00025947,2]
[379468470,1755295841144,-153.0,0.00025947,2]
[379468471,1755295841153,-153.0,0.00025947,2]
[379468472,1755295841164,-153.0,0.00025947,2]
[379468473,1755295841173,-153.0,0.00025947,2]
[379468474,1755295841183,-153.0,0.00025947,2]
[379468475,1755295841192,-153.0,0.00025947,2]
[379468476,1755295841201,-153.0,0.00025947,2]
[379468477,1755295841210,-153.0,0.00025947,2]
[379468478,1755295841220,-153.0,0.00025947,2]
[379468479,1755295841229,-153.0,0.00025947,2]
[379468480,1755295841238,-153.0,0.00025947,2]
[379468481,1755295841247,-153.0,0.00025947,2]
[379468482,1755295841256,-153.0,0.00025947,2]
[379468483,1755295841266,-153.0,0.00025947,2]
[379468484,1755295841275,-500.0,0.00025973,2]
[379468485,1755295841285,-150.0,0.00025973,2]
[379468486,1755295841295,-500.0,0.00025973,2]
[379468487,1755295841304,-500.0,0.00025973,2]
[379468488,1755295841313,-360.0,0.00025996,2]
[379468489,1755295841322,-198.0,0.00026028,2]
[379468490,1755295841331,-500.0,0.00026028,2]
[379468491,1755295841340,-295.49992114,0.00026034,2]